lending/lending_fUSD_20251106
["ID","MTS","AMOUNT","RATE_DAILY","PERIOD"]
[393310918,1762449636473,899.82,0.00038852,120]
[393310919,1762449636866,899.82,0.00038852,120]
[393310920,1762449637287,899.82,0.00038852,120]
[393310921,1762449637678,899.82,0.00038852,120]
[393310922,1762449638091,899.82,0.00038852,120]
[393310923,1762449638467,899.82,0.00038852,120]
[393310924,1762449638862,899.82,0.00038852,120]
[393310925,1762449639258,899.82,0.00038852,120]
[393310926,1762449639635,899.82,0.00038852,120]
[393310927,1762449640010,899.82,0.00038852,120]
[393310928,1762449640398,899.97390178,0.00038852,120]
[393310930,1762450071766,1099892.40207234,0.00015,2]
[393310935,1762450120449,1993.58926694,0.00013699,2]
[393310936,1762450136719,176.85,0.00012708,2]
[393310947,1762450231645,-320.82,0.0001538,2]
[393310949,1762450231655,-84.32652792,0.00015822,2]
[393310954,1762450231700,-236.49347208,0.00015822,2]
[393310956,1762450231709,-29.15883984,0.00015924,2]
[393310957,1762450231720,-970.84116016,0.00015924,2]
[393310958,1762450231729,-999.0,0.0001598,3]
[393310959,1762450231738,-530.15883984,0.00016012,2]
[393310960,1762450231750,-2220.84116016,0.00016012,2]
[393310961,1762450231759,-2188.42,0.00016045,2]
[393310962,1762450231768,-718.92288121,0.00016098,2]
[393310963,1762450231779,-41.76711879,0.00016098,2]
[393310964,1762450231788,-320.82,0.00016264,2]
[393310965,1762450231797,-1200.0,0.00016437,2]
[393310966,1762450231807,-300.0,0.00016437,2]
[393310967,1762450231815,-2395.5,0.00016438,2]
[393310968,1762450231827,-200.0,0.00016439,2]
[393310969,1762450231838,-320.82,0.00016706,2]
[393310970,1762450231847,-413.64336211,0.00016722,2]
[393310971,1762450231858,-5615.96257797,0.00016722,2]
[393310972,1762450231867,-7087.91388632,0.00016722,2]
[393310973,1762450231876,-154.9056131,0.00016722,2]
[393310974,1762450231886,-589.24,0.00016817,2]
[393310975,1762450231895,-1083.77,0.00016817,2]
[393310976,1762450231904,-14394.51831906,0.00016817,2]
[393310977,1762450231919,-614.50389,0.00016817,2]
[393310978,1762450231938,-524.35959244,0.00016719,2]
[393310979,1762450231947,-12939.30779094,0.00016817,2]
[393310980,1762450231956,-6786.09,0.00016817,2]
[393310981,1762450231966,-2179.75,0.00016817,2]
[393310982,1762450231976,-500.0,0.00016821,2]
[393310983,1762450231985,-183.69568692,0.00016821,2]
[393310984,1762450231994,-500.0,0.00016821,2]
[393310985,1762450232003,-500.0,0.00016821,2]
[393310986,1762450232012,-168.97245564,0.00016821,2]
[393310987,1762450232022,-24679.61151486,0.00016822,2]
[393310989,1762450232034,-162723.4055238,0.00016822,2]
[393311001,1762450237699,-500.0,0.00016719,2]
[393311002,1762450237709,-500.0,0.00016719,2]
[393311003,1762450237719,-231.10836625,0.00016719,2]
[393311004,1762450237728,-500.0,0.00016719,2]
[393311005,1762450237738,-500.0,0.00016719,2]
[393311006,1762450237748,-500.0,0.00016719,2]
[393311007,1762450237757,-500.0,0.00016719,2]
[393311008,1762450237767,-186.49163376,0.00016719,2]
[393311009,1762450237779,-313.50836624,0.00016719,2]
[393311010,1762450237788,-500.0,0.00016719,2]
[393311011,1762450237798,-26.15941379,0.00016719,2]
[393311012,1762450237815,-473.84058621,0.00016719,2]
[393311013,1762450237826,-502.66776605,0.00016719,2]
[393311014,1762450237836,-200.0,0.00016719,2]
[393311015,1762450237846,-274.06132852,0.00016719,2]
[393311016,1762450237866,-225.93867148,0.00016719,2]
[393311017,1762450237875,-500.0,0.00016719,2]
[393311018,1762450237886,-500.0,0.00016719,2]
[393311019,1762450237896,-500.0,0.00016719,2]
[393311020,1762450237907,-5421.39836754,0.00016822,2]
[393311021,1762450237922,-979.59888238,0.00016822,2]
[393311039,1762450240041,-8250.39692315,0.00016822,2]
[393311042,1762450240058,-217945.58878827,0.00016822,2]
[393311044,1762450240068,-1000.0,0.00016822,2]
[393311046,1762450240081,-500.0,0.00016849,2]
[393311048,1762450240091,-6029.60594008,0.00016853,2]
[393311049,1762450240100,-7087.91388632,0.00016853,2]
[393311050,1762450240110,-154.90561306,0.00016869,2]
[393311051,1762450240120,-500.0,0.00016873,2]
[393311052,1762450240130,-500.0,0.00016873,2]
[393311053,1762450240142,-500.0,0.00016873,2]
[393311054,1762450240152,-500.0,0.00016873,2]
[393311056,1762450240162,-500.0,0.00016873,2]
[393311057,1762450240172,-500.0,0.00016873,2]
[393311058,1762450240181,-500.0,0.00016873,2]
[393311059,1762450240191,-500.0,0.00016873,2]
[393311060,1762450240200,-161.62971378,0.00016873,2]
[393311061,1762450240210,-500.0,0.00016873,2]
[393311063,1762450240219,-500.0,0.00016873,2]
[393311064,1762450240228,-500.0,0.00016873,2]
[393311065,1762450240237,-500.0,0.00016873,2]
[393311066,1762450240247,-500.0,0.00016873,2]
[393311067,1762450240257,-500.0,0.00016873,2]
[393311068,1762450240267,-500.0,0.00016873,2]
[393311069,1762450240279,-257.01,0.0001689,2]
[393311070,1762450240289,-319.04446285,0.00016918,2]
[393311071,1762450240298,-195.0,0.00016918,2]
[393311072,1762450240308,-261.40211524,0.00016918,2]
[393311073,1762450240317,-322.17539204,0.00016918,2]
[393311074,1762450240328,-593.28012558,0.00016921,2]
[393311075,1762450240337,-324.02785148,0.00016921,2]
[393311076,1762450240346,-500.0,0.00016921,2]
[393311077,1762450240356,-1397.12,0.00016941,2]
[393311078,1762450240365,-6029.60594008,0.00016984,2]
[393311079,1762450240374,-7087.91388632,0.00016984,2]
[393311080,1762450240383,-250.0,0.00017,2]
[393311081,1762450240395,-200.0,0.00017,6]
[393311082,1762450240404,-154.90561306,0.00017017,2]
[393311083,1762450240413,-589.24,0.00017091,2]
[393311084,1762450240423,-500.0,0.000171,6]
[393311085,1762450240433,-500.0,0.00017114,2]
[393311086,1762450240442,-6029.60594008,0.00017115,2]
[393311087,1762450240452,-7087.91388632,0.00017115,2]
[393311088,1762450240462,-320.82,0.00017149,2]
[393311089,1762450240472,-154.90561306,0.00017164,2]
[393311090,1762450240484,-800.0,0.000172,6]
[393311091,1762450240494,-6029.60594008,0.00017246,2]
[393311092,1762450240508,-7087.91388632,0.00017246,2]
[393311093,1762450240519,-5000.0,0.00017276,2]
[393311094,1762450240529,-250.0,0.000173,2]
[393311095,1762450240538,-250.0,0.000173,2]
[393311096,1762450240549,-250.0,0.000173,2]
[393311097,1762450240559,-250.0,0.000173,2]
[393311098,1762450240568,-250.0,0.000173,2]
[393311099,1762450240579,-250.0,0.000173,2]
[393311100,1762450240589,-250.0,0.000173,2]
[393311101,1762450240598,-250.0,0.000173,2]
[393311102,1762450240607,-250.0,0.000173,2]
[393311103,1762450240617,-250.0,0.000173,2]
[393311104,1762450240626,-250.0,0.000173,2]
[393311105,1762450240636,-250.0,0.000173,2]
[393311106,1762450240648,-250.0,0.000173,2]
[393311107,1762450240657,-250.0,0.000173,2]
[393311108,1762450240667,-250.0,0.000173,2]
[393311109,1762450240677,-250.0,0.000173,2]
[393311110,1762450240687,-250.0,0.000173,2]
[393311111,1762450240696,-250.0,0.000173,2]
[393311112,1762450240706,-250.0,0.000173,2]
[393311113,1762450240715,-250.0,0.000173,2]
[393311114,1762450240724,-250.0,0.000173,2]
[393311115,1762450240733,-250.0,0.000173,2]
[393311116,1762450240742,-250.0,0.000173,2]
[393311117,1762450240751,-250.0,0.000173,2]
[393311118,1762450240761,-250.0,0.000173,2]
[393311119,1762450241012,-250.0,0.000173,2]
[393311120,1762450241022,-250.0,0.000173,2]
[393311121,1762450241031,-269.0,0.000173,2]
[393311122,1762450241041,-1000.0,0.000173,6]
[393311123,1762450241050,-589.24,0.00017365,2]
[393311124,1762450241059,-6029.60594008,0.00017376,2]
[393311125,1762450241068,-7087.91388632,0.00017376,2]
[393311126,1762450241078,-1300.0,0.000174,6]
[393311127,1762450241087,-500.0,0.00017421,2]
[393311128,1762450241096,-1000.0,0.00017421,2]
[393311129,1762450241105,-1000.0,0.00017421,2]
[393311130,1762450241114,-1000.0,0.00017421,2]
[393311131,1762450241123,-1000.0,0.00017421,2]
[393311132,1762450241132,-1000.0,0.00017421,2]
[393311133,1762450241143,-504.75986535,0.00017421,2]
[393311134,1762450241152,-696.23949712,0.00017421,2]
[393311135,1762450241161,-1000.0,0.00017421,2]
[393311136,1762450241170,-500.0,0.00017421,2]
[393311137,1762450241182,-486.35532093,0.00017421,2]
[393311138,1762450241192,-1000.0,0.00017421,2]
[393311139,1762450241201,-1000.0,0.00017421,2]
[393311140,1762450241210,-1000.0,0.00017421,2]
[393311141,1762450241220,-1000.0,0.00017421,2]
[393311142,1762450241229,-20000.0,0.000175,2]
[393311143,1762450241239,-465.65596555,0.000175,2]
[393311144,1762450241248,-200.0,0.000175,6]
[393311145,1762450241259,-6029.60594008,0.00017507,2]
[393311146,1762450241268,-7087.91388632,0.00017507,2]
[393311147,1762450241278,-300.0,0.00017542,2]
[393311148,1762450241287,-329.46,0.000176,2]
[393311149,1762450241296,-331.18,0.000176,2]
[393311150,1762450241305,-200.0,0.000176,6]
[393311151,1762450241315,-150.0,0.00017634,2]
[393311152,1762450241325,-698.56,0.00017636,2]
[393311153,1762450241334,-698.56,0.00017636,2]
[393311154,1762450241343,-697.96,0.00017636,2]
[393311155,1762450241353,-286.82,0.00017636,2]
[393311156,1762450241362,-6029.60594008,0.00017638,2]
[393311157,1762450241371,-7087.91388632,0.00017638,2]
[393311158,1762450241380,-589.24,0.00017639,2]
[393311159,1762450241390,-477.12,0.00017654,2]
[393311160,1762450241400,-477.12,0.00017654,2]
[393311161,1762450241410,-4970.0,0.00017673,2]
[393311162,1762450241419,-371.6420851,0.00017687,7]
[393311163,1762450241429,-462.90844525,0.00017699,2]
[393311164,1762450241439,-200.0,0.000177,6]
[393311165,1762450241449,-1063.1084148,0.000177,2]
[393311166,1762450241458,-4970.0,0.00017714,2]
[393311167,1762450241468,-162.5612366,0.00017736,2]
[393311168,1762450241478,-331.18,0.00017737,2]
[393311169,1762450241488,-6029.60594008,0.00017769,2]
[393311170,1762450241497,-7087.91388632,0.00017769,2]
[393311171,1762450241508,-200.0,0.000178,6]
[393311172,1762450241517,-151.0,0.00017827,2]
[393311173,1762450241527,-500.0,0.00017829,2]
[393311174,1762450241537,-90441.67278817,0.0001783,2]
[393311175,1762450241547,-500.0,0.00017863,2]
[393311176,1762450241557,-150.0,0.00017863,2]
[393311177,1762450241566,-2500.0,0.00017865,3]
[393311178,1762450241575,-4379.31295648,0.000179,2]
[393311179,1762450241590,-1876.90931753,0.000179,2]
[393311180,1762450241600,-6029.60594008,0.000179,2]
[393311181,1762450241609,-808.0,0.000179,6]
[393311182,1762450241618,-150.81255791,0.000179,3]
[393311183,1762450241628,-650.06320246,0.000179,2]
[393311184,1762450241639,-7087.91388632,0.000179,2]
[393311185,1762450241648,-3332.68235117,0.000179,2]
[393311186,1762450241659,-589.24,0.00017913,2]
[393311187,1762450241668,-1000.0,0.00017915,2]
[393311188,1762450241678,-4970.0,0.0001792,2]
[393311189,1762450241687,-21391.82954433,0.00017946,2]
[393311190,1762450241696,-1596.0,0.00017951,2]
[393311191,1762450241705,-820.0,0.00017951,2]
[393311192,1762450241715,-812.0,0.00017951,2]
[393311193,1762450241724,-1273.0,0.00017951,2]
[393311194,1762450241733,-905.0,0.00017951,2]
[393311195,1762450241743,-1188.0,0.00017951,2]
[393311196,1762450241752,-6673.309,0.00017951,2]
[393311197,1762450241761,-574.0,0.00017951,2]
[393311198,1762450241771,-608.492,0.00017951,2]
[393311199,1762450241781,-1315.0,0.00017951,2]
[393311200,1762450241790,-1500.0,0.00017968,2]
[393311201,1762450241799,-1500.0,0.00017968,2]
[393311202,1762450241809,-314.57989869,0.00017968,2]
[393311203,1762450241818,-1500.0,0.00017968,2]
[393311204,1762450241827,-1000.0,0.00017968,2]
[393311205,1762450241837,-1500.0,0.00017968,2]
[393311206,1762450241846,-1500.0,0.00017968,2]
[393311207,1762450241855,-1500.0,0.00017968,2]
[393311208,1762450241864,-1201.31080728,0.00017968,2]
[393311209,1762450241873,-1500.0,0.00017968,2]
[393311210,1762450241883,-503.54833867,0.00017973,2]
[393311211,1762450241892,-500.0,0.00017973,2]
[393311212,1762450241901,-500.68961362,0.00017973,2]
[393311213,1762450241910,-500.74497787,0.00017973,2]
[393311214,1762450241920,-500.0,0.00017973,2]
[393311215,1762450241929,-500.0,0.00017973,2]
[393311216,1762450241938,-500.0,0.00017973,2]
[393311217,1762450241948,-500.0,0.00017973,2]
[393311218,1762450241956,-500.0,0.00017973,2]
[393311219,1762450241969,-500.0,0.00017973,2]
[393311220,1762450241979,-500.19258661,0.00017973,2]
[393311221,1762450241988,-324.3529394,0.00017973,2]
[393311222,1762450241998,-500.22397222,0.00017973,2]
[393311223,1762450242008,-500.0,0.00017973,2]
[393311224,1762450242017,-500.0,0.00017973,2]
[393311225,1762450242027,-500.0,0.00017973,2]
[393311226,1762450242036,-500.0,0.00017973,2]
[393311227,1762450242046,-500.0,0.00017973,2]
[393311228,1762450242056,-164.32088567,0.00017973,2]
[393311229,1762450242065,-503.10120576,0.00017973,2]
[393311230,1762450242075,-500.0,0.00017973,2]
[393311231,1762450242084,-500.0,0.00017973,2]
[393311232,1762450242094,-500.0,0.00017973,2]
[393311233,1762450242103,-519.18307987,0.00017973,2]
[393311234,1762450242113,-500.0,0.00017973,2]
[393311235,1762450242122,-177.37183527,0.00017973,2]
[393311236,1762450242131,-158.14817295,0.00017973,2]
[393311237,1762450242142,-465.03295868,0.00017973,2]
[393311238,1762450242152,-514.51741513,0.00017973,2]
[393311239,1762450242161,-500.0,0.00017973,2]
[393311240,1762450242171,-505.37835354,0.00017973,2]
[393311241,1762450242183,-500.0,0.00017973,2]
[393311242,1762450242199,-500.0,0.00017973,2]
[393311243,1762450242208,-500.0,0.00017973,2]
[393311244,1762450242218,-500.65741845,0.00017973,2]
[393311245,1762450242228,-500.0,0.00017973,2]
[393311246,1762450242238,-500.0,0.00017973,2]
[393311247,1762450242247,-500.0,0.00017973,2]
[393311248,1762450242256,-500.0,0.00017973,2]
[393311249,1762450242266,-500.49618419,0.00017973,2]
[393311250,1762450242275,-500.27797312,0.00017973,2]
[393311251,1762450242284,-440.97162396,0.0001799,2]
[393311252,1762450242293,-440.97162396,0.0001799,2]
[393311253,1762450242303,-440.97162396,0.0001799,2]
[393311254,1762450242312,-151.0,0.00017997,2]
[393311255,1762450242322,-685.04074978,0.00017999,5]
[393311256,1762450242331,-155.0,0.00017999,2]
[393311257,1762450242340,-585.85,0.00017999,2]
[393311258,1762450242350,-585.85,0.00017999,2]
[393311259,1762450242359,-585.85,0.00017999,2]
[393311260,1762450242368,-585.85,0.00017999,2]
[393311261,1762450242378,-585.85,0.00017999,2]
[393311262,1762450242388,-585.85,0.00017999,2]
[393311263,1762450242397,-585.85,0.00017999,2]
[393311264,1762450242406,-585.85,0.00017999,2]
[393311265,1762450242415,-585.85,0.00017999,2]
[393311266,1762450242425,-585.85,0.00017999,2]
[393311267,1762450242436,-585.85,0.00017999,2]
[393311268,1762450242445,-585.85,0.00017999,2]
[393311269,1762450242455,-585.85,0.00017999,2]
[393311270,1762450242464,-585.85,0.00017999,2]
[393311271,1762450242473,-585.85,0.00017999,2]
[393311272,1762450242482,-585.85,0.00017999,2]
[393311274,1762450242492,-585.85,0.00017999,2]
[393311276,1762450242506,-585.85,0.00017999,2]
[393311278,1762450242515,-585.85,0.00017999,2]
[393311279,1762450242525,-585.85,0.00017999,2]
[393311280,1762450242534,-585.85,0.00017999,2]
[393311282,1762450242543,-585.85,0.00017999,2]
[393311283,1762450242553,-585.85,0.00017999,2]
[393311285,1762450242562,-585.85248761,0.00017999,2]
[393311286,1762450242571,-1000.0,0.00017999,2]
[393311287,1762450242581,-212.916,0.00017999,2]
[393311288,1762450242591,-399.17554175,0.00017999,2]
[393311289,1762450242600,-284.48434783,0.00017999,2]
[393311290,1762450242609,-500.0,0.00017999,2]
[393311291,1762450242619,-500.0,0.00017999,2]
[393311292,1762450242628,-500.0,0.00017999,2]
[393311293,1762450242637,-500.0,0.00017999,2]
[393311294,1762450242647,-500.0,0.00017999,2]
[393311295,1762450242656,-284.14372178,0.00017999,2]
[393311296,1762450242665,-3473.0,0.00018,2]
[393311297,1762450242675,-1003396.48688543,0.00018,2]
[393311298,1762450242690,-603.508,0.00018,2]
[393311299,1762450242701,-2476.88896767,0.00018,2]
[393311300,1762450242916,-154.90561306,0.00017311,2]
[393311301,1762450242926,-477.87911524,0.00017508,2]
[393311302,1762450242936,-1416861.40602066,0.00018,2]
[393311314,1762450246088,-499.99999999,0.00016719,2]
[393311315,1762450246101,-154.90561306,0.00017458,2]
[393311316,1762450246111,-626.17888012,0.00017951,2]
[393311317,1762450246410,-295.62200007,0.00017951,2]
[393311332,1762450255436,226.7,0.00026428,120]
[393311333,1762450256296,150.0,0.00038852,120]
[393311358,1762450347165,500.0,0.00038852,120]
[393311359,1762450347554,500.0,0.00038852,120]
[393311360,1762450347926,500.0,0.00038852,120]
[393311361,1762450348345,500.0,0.00038852,120]
[393311362,1762450348746,500.0,0.00038852,120]
[393311363,1762450349472,500.0,0.00038852,120]
[393311364,1762450349880,500.0,0.00038852,120]
[393311365,1762450350272,500.0,0.00038852,120]
[393311366,1762450350659,500.0,0.00038852,120]
[393311367,1762450351034,500.0,0.00038852,120]
[393311368,1762450351425,500.0,0.00038852,120]
[393311369,1762450351819,500.0,0.00038852,120]
[393311370,1762450352224,500.0,0.00038852,120]
[393311371,1762450352614,310.00355962,0.00038852,120]
[393311375,1762450859501,150.0,0.0001638,120]
[393311420,1762451171757,585.5,0.00038841,30]
[393311475,1762451299541,894.71459963,0.00013699,2]
[393311476,1762451299578,5.27540037,0.00013699,2]
[393311498,1762451431891,-166.66,0.00015546,2]
[393311499,1762451431903,-261.40211524,0.00015587,2]
[393311500,1762451431914,-195.0,0.00015628,2]
[393311501,1762451431924,-177.52,0.00015846,2]
[393311502,1762451431934,-166.66,0.00015874,2]
[393311503,1762451431944,-506.66,0.0001596,2]
[393311504,1762451431954,-166.66,0.00016201,2]
[393311505,1762451431964,-51.5328567,0.0001638,2]
[393311506,1762451431976,-98.4671433,0.0001638,2]
[393311507,1762451431986,-166.66,0.00016528,2]
[393311508,1762451431996,-2500.0,0.00016622,2]
[393311509,1762451432005,-634.81063432,0.00016664,2]
[393311510,1762451432017,-347.43508066,0.00016664,2]
[393311511,1762451432028,-217.75428502,0.00016664,2]
[393311512,1762451432037,-300.0,0.00016664,2]
[393311513,1762451432046,-500.0,0.00016665,2]
[393311514,1762451432056,-500.0,0.00016665,2]
[393311515,1762451432066,-300.0,0.00016665,2]
[393311516,1762451432076,-500.0,0.00016665,2]
[393311517,1762451432086,-500.0,0.00016665,2]
[393311518,1762451432096,-264.62647715,0.00016665,2]
[393311519,1762451432118,-438.03031702,0.00016665,2]
[393311538,1762451432467,-159.78114633,0.00016665,2]
[393311539,1762451432487,-500.0,0.00016665,2]
[393311540,1762451432506,-500.0,0.00016665,2]
[393311541,1762451432519,-3503.04,0.00016666,2]
[393311542,1762451432529,-6511.82007832,0.00016666,2]
[393311543,1762451432538,-153.39283387,0.00016666,2]
[393311544,1762451432547,-154.90561306,0.00016666,2]
[393311545,1762451432557,-6060.05120417,0.00016666,2]
[393311546,1762451432567,-257.01,0.0001671,2]
[393311547,1762451432576,-500.0,0.00016721,2]
[393311548,1762451432585,-423.51791763,0.00016721,2]
[393311549,1762451432594,-500.0,0.00016721,2]
[393311550,1762451432603,-500.0,0.00016721,2]
[393311551,1762451432613,-500.0,0.00016721,2]
[393311552,1762451432623,-77041.81519957,0.00016722,2]
[393311553,1762451432634,-701.61386136,0.00016722,2]
[393311554,1762451432648,-2536.56116336,0.00016722,2]
[393311555,1762451432660,-511.14,0.00016722,2]
[393311556,1762451432671,-262.85900001,0.00016722,2]
[393311557,1762451432682,-1934.23176365,0.00016722,2]
[393311558,1762451432692,-314.43958933,0.00016722,2]
[393311559,1762451432703,-2962.45649916,0.00016722,2]
[393311560,1762451432714,-20259.89364813,0.00016722,2]
[393311561,1762451432727,-244393.50619958,0.00016722,2]
[393311562,1762451432739,-13831.9148987,0.00016722,2]
[393311563,1762451432750,-1655.41798256,0.00016722,2]
[393311564,1762451432760,-5066.0,0.00016722,2]
[393311574,1762451437880,-308.81,0.00016722,2]
[393311575,1762451437892,-1014.013,0.00016722,2]
[393311576,1762451437905,-46916.8811984,0.00016722,2]
[393311577,1762451437984,-288.44599619,0.00016722,2]
[393311578,1762451438004,-177.52,0.00016726,2]
[393311579,1762451438014,-200.0,0.00016766,2]
[393311580,1762451438023,-419.2814,0.00016767,2]
[393311581,1762451438034,-500.0,0.00016773,2]
[393311582,1762451438044,-422.05466794,0.00016773,2]
[393311583,1762451438060,-77.94533206,0.00016773,2]
[393311584,1762451438070,-500.0,0.00016773,2]
[393311585,1762451438079,-500.0,0.00016773,2]
[393311586,1762451438090,-76.45288482,0.00016773,2]
[393311588,1762451438101,-423.54711518,0.00016773,2]
[393311589,1762451438111,-500.0,0.00016773,2]
[393311590,1762451438122,-500.0,0.00016773,2]
[393311591,1762451438132,-500.0,0.00016773,2]
[393311592,1762451438142,-161.62971378,0.00016773,2]
[393311593,1762451438152,-500.0,0.00016773,2]
[393311594,1762451438162,-500.0,0.00016773,2]
[393311595,1762451438172,-500.0,0.00016773,2]
[393311596,1762451438182,-500.0,0.00016773,2]
[393311597,1762451438191,-500.0,0.00016773,2]
[393311598,1762451438202,-500.0,0.00016773,2]
[393311599,1762451438211,-2547.38933404,0.00016803,2]
[393311600,1762451438224,-3964.43074426,0.00016803,2]
[393311601,1762451438234,-6060.05120414,0.00016803,2]
[393311602,1762451438244,-500.0,0.00016821,2]
[393311603,1762451438254,-500.0,0.00016821,2]
[393311605,1762451438264,-500.0,0.00016821,2]
[393311607,1762451438274,-500.0,0.00016821,2]
[393311609,1762451438284,-324.02785148,0.00016821,2]
[393311610,1762451438293,-593.28012558,0.00016821,2]
[393311611,1762451438303,-500.0,0.00016821,2]
[393311612,1762451438313,-166.66,0.00016855,2]
[393311613,1762451438324,-5000.0,0.000169,2]
[393311614,1762451438334,-282.95484058,0.0001691,2]
[393311615,1762451438343,-153.39283384,0.00016913,2]
[393311616,1762451438353,-154.90561306,0.00016913,2]
[393311617,1762451438362,-6511.8200783,0.0001694,2]
[393311618,1762451438374,-6060.05120414,0.0001694,2]
[393311619,1762451438383,-726.0,0.00016961,2]
[393311620,1762451438393,-500.0,0.00016999,2]
[393311621,1762451438402,-18804.41229229,0.00017,2]
[393311625,1762451439932,-150.0,0.00016821,2]
[393311626,1762451439943,-500.0,0.00016958,2]
[393311627,1762451439952,-4403.5,0.00017,2]
[393311628,1762451439963,-1076.1126225,0.00017,2]
[393311629,1762451439974,-3606.64961945,0.00017,2]
[393311630,1762451439986,-749.53581659,0.00017,2]
[393311631,1762451439996,-500.0,0.00017,2]
[393311632,1762451440006,-150.0,0.00017,2]
[393311633,1762451440015,-500.0,0.00017,2]
[393311634,1762451440025,-200.0,0.00017,6]
[393311635,1762451440034,-429.57,0.00017032,2]
[393311636,1762451440043,-0.98151233,0.00017077,2]
[393311637,1762451440100,-6510.83856597,0.00017077,2]
[393311638,1762451440109,-97.09040506,0.00017077,2]
[393311639,1762451440126,-500.0,0.00016821,2]
[393311640,1762451440135,-5962.96079908,0.00017077,2]
[393311641,1762451440145,-726.0,0.00017092,2]
[393311642,1762451440155,-500.0,0.00017095,2]
[393311643,1762451440176,-500.0,0.000171,6]
[393311644,1762451440185,-300.0,0.00017101,2]
[393311645,1762451440195,-300.0,0.00017101,2]
[393311646,1762451440205,-300.0,0.00017101,2]
[393311647,1762451440215,-355.86717793,0.00017101,2]
[393311648,1762451440225,-319.04446285,0.00017101,2]
[393311649,1762451440235,-195.0,0.00017101,2]
[393311650,1762451440245,-322.17539204,0.00017101,2]
[393311651,1762451440254,-2500.0,0.00017101,2]
[393311652,1762451440264,-195.0,0.00017101,2]
[393311653,1762451440274,-726.0,0.00017134,2]
[393311654,1762451440283,-500.0,0.00017137,2]
[393311655,1762451440293,-224.68099392,0.00017137,2]
[393311656,1762451440302,-500.0,0.00017137,2]
[393311657,1762451440311,-726.0,0.00017152,2]
[393311658,1762451440321,-153.39283384,0.0001716,2]
[393311659,1762451440330,-154.90561306,0.0001716,2]
[393311660,1762451440340,-500.0,0.0001716,2]
[393311661,1762451440350,-162.44257324,0.0001716,2]
[393311662,1762451440359,-150.0,0.0001716,2]
[393311663,1762451440369,-150.0,0.0001716,2]
[393311664,1762451440381,-150.0,0.0001716,2]
[393311665,1762451440391,-500.0,0.0001716,2]
[393311666,1762451440400,-150.0,0.0001716,2]
[393311667,1762451440410,-500.0,0.0001716,2]
[393311668,1762451440420,-150.0,0.0001716,2]
[393311669,1762451440430,-500.0,0.0001716,2]
[393311670,1762451440439,-500.0,0.0001716,2]
[393311671,1762451440449,-166.66,0.00017183,2]
[393311672,1762451440458,-800.0,0.000172,6]
[393311673,1762451440468,-6511.8200783,0.00017214,2]
[393311674,1762451440477,-6060.05120414,0.00017214,2]
[393311675,1762451440487,-190.50271738,0.00017232,2]
[393311676,1762451440496,-726.0,0.00017251,2]
[393311677,1762451440505,-500.0,0.00017274,2]
[393311678,1762451440515,-500.0,0.00017274,2]
[393311679,1762451440524,-500.0,0.00017297,2]
[393311680,1762451440534,-150.0,0.00017297,2]
[393311681,1762451440544,-150.0,0.00017297,2]
[393311682,1762451440553,-600.0,0.00017297,2]
[393311683,1762451440563,-450.0,0.00017297,2]
[393311684,1762451440573,-500.0,0.00017297,2]